bitfinex-derivatives/quotes_SOLF0:USTF0_20240920
["timestamp","ask_amount","ask_price","bid_price","bid_amount"]
[1726792422385,10.78,142.23,142.2,4.8982]
[1726792422986,10.78,142.23,142.2,1.3831]
[1726792423192,14.2945,142.23,142.2,1.3831]
[1726792423492,10.78,142.21,142.17,10.78]
[1726792423681,10.78,142.21,142.18,10.78]
[1726792423885,10.78,142.23,142.18,14.2955]
[1726792424081,10.78,142.22,142.16,1.4676]
[1726792424282,10.78,142.19,142.14,3.5167]
[1726792424490,10.78,142.19,142.14,10.78]
[1726792424889,3.5151,142.21,142.17,14.2959]
[1726792425286,14.2951,142.21,142.17,14.2959]
[1726792425693,10.78,142.2,142.16,10.78]
[1726792425986,10.78,142.18,142.14,10.78]
[1726792426199,10.78,142.18,142.15,3.5164]
[1726792426490,10.78,142.18,142.14,10.78]
[1726792426491,4.86167993,142.25,142.16,10.78]
[1726792426689,14.2949,142.22,142.17,14.2958]
[1726792426892,10.78,142.23,142.18,10.78]
[1726792428098,10.78,142.22,142.18,3.5156]
[1726792428486,10.78,142.22,142.17,14.2958]
[1726792428889,10.78,142.22,142.12,2.9151]
[1726792429202,14.2946,142.23,142.19,3.5154]
[1726792429400,14.2946,142.23,142.18,10.78]
[1726792429595,14.2946,142.23,142.19,3.5154]
[1726792429792,1.3641,142.26,142.18,10.78]
[1726792429793,3.5144,142.24,142.18,10.78]
[1726792429988,1.3641,142.26,142.21,10.78]
[1726792430193,1.3728,142.3,142.22,10.78]
[1726792430495,10.78,142.27,142.22,10.78]
[1726792430704,10.78,142.27,142.23,3.5143]
[1726792431398,10.78,142.27,142.22,10.78]
[1726792431600,3.5139,142.26,142.22,10.78]
[1726792431896,3.5139,142.26,142.19,2.7266]
[1726792431897,10.78,142.26,142.21,10.78]
[1726792432094,10.78,142.25,142.19,2.7266]
[1726792432401,3.5143,142.24,142.19,13.5066]
[1726792432892,3.5143,142.24,142.19,2.7266]
[1726792433100,10.78,142.25,142.2,10.78]
[1726792433392,1.4183,142.33,142.22,10.78]
[1726792433593,10.78,142.28,142.23,10.78]
[1726792433988,14.2939,142.26,142.22,10.78]
[1726792434196,10.78,142.26,142.22,10.78]
[1726792434491,10.78,142.26,142.21,3.5149]
[1726792434492,10.78,142.25,142.21,3.5149]
[1726792434890,14.2941,142.25,142.21,3.5149]
[1726792435400,14.2941,142.25,142.21,14.2949]
[1726792436696,14.2941,142.25,142.21,10.78]
[1726792437299,14.2941,142.25,142.21,14.295]
[1726792437897,14.2941,142.25,142.21,10.78]
[1726792439293,14.2941,142.25,142.21,14.295]
[1726792439997,10.78,142.25,142.22,3.5147]
[1726792440196,14.2938,142.26,142.22,14.2947]
[1726792440402,2.8237,142.33,142.24,10.78]
[1726792440600,10.78,142.29,142.25,10.78]
[1726792441196,14.2928,142.3,142.26,3.5136]
[1726792441509,10.78,142.33,142.28,10.78]
[1726792441805,14.28415384,142.34,142.3,10.78]
[1726792442005,10.78,142.34,142.3,10.78]
[1726792442404,14.2345767,142.35,142.3,10.78]
[1726792442606,3.5118,142.34,142.3,14.2927]
[1726792442802,14.2918,142.34,142.3,14.2927]
[1726792443103,1.4273,142.36,142.27,10.78]
[1726792443104,10.78,142.32,142.27,10.78]
[1726792443513,10.78,142.32,142.28,3.5131]
[1726792443707,10.78,142.33,142.29,10.78]
[1726792443900,20.43409463,142.35,142.27,16.88]
[1726792444300,16.88,142.33,142.25,16.88]
[1726792445008,20.35360732,142.33,142.25,16.88]
[1726792445209,3.5127,142.31,142.27,3.5135]
[1726792445409,20.35360732,142.33,142.25,16.88]
[1726792445811,3.5128,142.3,142.26,3.5136]
[1726792446008,20.35360732,142.33,142.25,16.88]
[1726792446414,20.35360732,142.33,142.26,3.5137]
[1726792446914,3.5128,142.3,142.26,3.5137]
[1726792449912,3.5133,142.29,142.25,20.3939]
[1726792450111,20.35360732,142.33,142.23,16.88]
[1726792450614,3.5133,142.29,142.24,3.5142]
[1726792451609,3.5133,142.29,142.25,3.514]
[1726792451815,3.5128,142.3,142.25,16.88]
[1726792452010,20.35360732,142.33,142.27,3.5135]
[1726792452613,20.35360732,142.33,142.24,16.88]
[1726792453015,3.5128,142.3,142.24,16.88]
[1726792453314,3.5128,142.3,142.26,3.5136]
[1726792453515,3.5132,142.29,142.24,16.88]
[1726792453710,3.5132,142.29,142.25,3.5139]
[1726792455018,20.35360732,142.33,142.25,3.5139]
[1726792455517,20.35360732,142.33,142.24,16.88]
[1726792456210,3.5127,142.31,142.27,3.5134]
[1726792456811,3.5128,142.3,142.26,3.5137]
[1726792457010,20.35360732,142.33,142.24,16.88]
[1726792457407,1.4273,142.36,142.28,16.88]
[1726792457612,3.50819411,142.35,142.28,16.88]
[1726792457810,3.5122,142.33,142.29,3.5129]
[1726792458010,3.50819411,142.35,142.26,18.3013]
[1726792458011,20.38819411,142.35,142.26,18.3013]
[1726792458318,16.88,142.35,142.26,18.3013]
[1726792458909,3.5127,142.31,142.28,3.5133]
[1726792460014,3.5127,142.31,142.26,18.3013]
[1726792460015,3.5124,142.32,142.29,3.513]
[1726792460317,20.34611861,142.35,142.26,18.3013]
[1726792460318,3.46611861,142.35,142.28,16.88]
[1726792461210,3.5122,142.33,142.3,3.5126]
[1726792461811,3.5122,142.33,142.31,3.5125]
[1726792462010,3.5122,142.33,142.28,16.88]
[1726792462919,1.4615,142.38,142.26,1.4213]
[1726792462920,1.4615,142.38,142.31,16.88]
[1726792463415,3.5112,142.37,142.33,3.512]
[1726792463619,16.88,142.41,142.33,16.88]
[1726792463814,2.7714,142.42,142.33,16.88]
[1726792464014,19.6514,142.42,142.33,16.88]
[1726792464222,3.5107,142.39,142.34,16.88]
[1726792464423,19.6514,142.42,142.34,16.88]
[1726792464816,3.5105,142.4,142.34,16.88]
[1726792465319,16.88,142.44,142.34,16.88]
[1726792465320,3.5102,142.41,142.34,16.88]
[1726792465518,16.88,142.44,142.36,16.88]
[1726792465721,21.86528264,142.46,142.36,16.88]
[1726792465915,3.5098,142.43,142.38,3.5106]
[1726792466121,3.5098,142.43,142.36,16.88]
[1726792466615,3.5099,142.42,142.38,3.5107]
[1726792467524,3.5095,142.44,142.39,3.5104]
[1726792468118,3.5096,142.43,142.39,3.5104]
[1726792468419,3.5096,142.43,142.38,20.3907]
[1726792468622,18.3221,142.46,142.38,20.3907]
[1726792469125,18.3221,142.46,142.39,3.5106]
[1726792469525,3.5098,142.43,142.39,3.5106]
[1726792471226,3.5099,142.42,142.39,3.5106]
[1726792471428,18.3221,142.46,142.36,16.88]
[1726792472126,16.88,142.44,142.36,16.88]
[1726792472326,16.88,142.42,142.35,2.7413]
[1726792472823,16.88,142.4,142.33,16.88]
[1726792473327,3.511,142.38,142.34,3.5118]
[1726792473728,16.88,142.42,142.34,3.5118]
[1726792473921,16.88,142.4,142.31,140.54]
[1726792474127,16.88,142.38,142.31,140.54]
[1726792474329,16.88,142.37,142.28,19.6945]
[1726792474724,18.329,142.37,142.28,19.6945]
[1726792475026,18.329,142.37,142.3,3.5127]
[1726792475027,3.5119,142.34,142.3,3.5127]
[1726792475426,3.57582837,142.36,142.3,3.5127]
[1726792476221,18.329,142.37,142.3,3.5127]
[1726792476426,18.329,142.37,142.31,3.5125]
[1726792476624,1.449,142.37,142.31,3.5125]
[1726792476827,3.5116,142.35,142.31,3.5125]
[1726792478230,1.449,142.37,142.3,3.5127]
[1726792478727,3.5121,142.33,142.28,2.8145]
[1726792478933,18.329,142.37,142.29,3.5128]
[1726792479133,18.329,142.37,142.28,2.8145]
[1726792479528,3.5123,142.32,142.28,6.3276]
[1726792481534,3.5123,142.32,142.29,3.513]
[1726792481734,16.88,142.35,142.29,3.513]
[1726792481735,3.5122,142.33,142.29,3.513]
[1726792482137,18.329,142.37,142.3,3.5127]
[1726792482329,3.5117,142.35,142.29,16.88]
[1726792482831,3.5117,142.35,142.31,3.5125]
[1726792483235,3.5118,142.34,142.29,16.88]
[1726792484036,3.5118,142.34,142.3,3.5127]
[1726792484631,3.512,142.33,142.29,20.393]
[1726792485837,3.512,142.33,142.3,3.5128]
[1726792486231,3.512,142.33,142.29,16.88]
[1726792486433,3.512,142.33,142.29,20.3929]
[1726792487627,3.512,142.33,142.29,3.5129]
[1726792490035,3.512,142.33,142.3,3.5128]
[1726792491744,1.449,142.37,142.31,3.5124]
[1726792491934,3.44617517,142.38,142.31,3.5124]
[1726792491935,3.44617517,142.38,142.31,16.88]
[1726792492337,3.5115,142.36,142.32,3.5122]
[1726792492743,18.342,142.39,142.33,3.5119]
[1726792493345,3.5116,142.35,142.32,3.5122]
[1726792493745,3.5116,142.35,142.31,16.88]
[1726792493947,3.5116,142.35,142.31,20.3924]
[1726792495451,3.5116,142.35,142.32,3.5123]
[1726792495645,3.5114,142.36,142.32,3.5123]
[1726792495842,16.88,142.39,142.31,16.88]
[1726792496043,1.3871,142.43,142.34,3.5117]
[1726792496044,16.88,142.4,142.34,3.5117]
[1726792496650,3.5109,142.38,142.34,3.5117]
[1726792496847,16.88,142.4,142.34,3.5117]
[1726792497754,3.511,142.38,142.34,3.5117]
[1726792498454,3.5111,142.37,142.34,3.5117]
[1726792499152,3.5111,142.37,142.33,3.5119]
[1726792499953,3.5113,142.36,142.33,3.5119]
[1726792500547,3.5116,142.35,142.32,3.5121]
[1726792500757,3.5116,142.35,142.31,16.88]
[1726792500956,3.5116,142.35,142.29,16.88]
[1726792501250,16.88,142.37,142.29,16.88]
[1726792501451,16.88,142.37,142.28,2.8145]
[1726792501452,16.88,142.36,142.28,2.8145]
[1726792502052,16.88,142.36,142.29,3.513]
[1726792502853,16.88,142.38,142.29,16.88]
[1726792503050,3.5118,142.34,142.29,16.88]
[1726792503355,16.88,142.38,142.3,3.5126]
[1726792503551,16.88,142.36,142.28,2.8145]
[1726792503953,16.88,142.36,142.29,3.5129]
[1726792504352,3.5123,142.32,142.28,2.8145]
[1726792504553,3.5123,142.32,142.28,6.3276]
[1726792504756,3.5123,142.32,142.28,2.8145]
[1726792505652,3.50896414,142.36,142.28,2.8145]
[1726792505856,3.5121,142.33,142.28,2.8145]
[1726792506059,16.88,142.36,142.3,3.5127]
[1726792506258,3.512,142.34,142.3,3.5127]
[1726792506853,3.5117,142.35,142.29,16.88]
[1726792507760,3.5117,142.35,142.31,3.5124]
[1726792507962,16.88,142.36,142.28,2.8145]
[1726792508158,16.88,142.36,142.29,3.5129]
[1726792509163,3.5121,142.33,142.29,3.5129]
[1726792509666,3.5124,142.32,142.28,6.3276]
[1726792509862,3.5124,142.32,142.28,4.9775]
[1726792510262,3.5124,142.32,142.29,3.513]
[1726792511067,3.5124,142.32,142.28,4.9777]
[1726792512663,3.5122,142.33,142.28,1.4644]
[1726792512960,16.88,142.36,142.28,1.4644]
[1726792513355,3.512,142.34,142.3,3.5126]
[1726792514868,3.5121,142.33,142.3,3.5126]
[1726792515664,16.88,142.36,142.28,1.4644]
[1726792515864,16.88,142.34,142.28,1.4644]
[1726792516066,16.88,142.34,142.26,16.88]
[1726792516864,3.5127,142.31,142.27,3.5134]
[1726792519067,3.5128,142.3,142.27,3.5134]
[1726792523267,16.88,142.3,142.23,1.3282]
[1726792523472,3.58913528,142.3,142.23,1.3282]
[1726792523661,16.88,142.3,142.24,3.5142]
[1726792524678,16.88,142.3,142.23,1.3282]
[1726792524679,3.5134,142.28,142.25,3.514]
[1726792525272,3.5131,142.29,142.25,3.514]
[1726792525975,3.5133,142.28,142.24,20.3942]
[1726792526167,20.31156989,142.3,142.23,1.3282]
[1726792526372,16.88,142.29,142.23,1.3282]
[1726792526691,1.3747,142.31,142.16,16.88]
[1726792526972,3.5146,142.23,142.16,16.88]
[1726792527174,3.5146,142.23,142.17,97.44246929]
[1726792527370,16.88,142.24,142.17,93.92656929]
[1726792527575,1.4415,142.28,142.17,110.80656929]
[1726792527576,16.88,142.26,142.17,110.80656929]
[1726792527976,3.514,142.25,142.17,110.80656929]
[1726792528875,3.514,142.25,142.19,3.5154]
[1726792529465,3.5143,142.24,142.19,3.5154]
[1726792529674,16.88,142.26,142.18,3.5157]
[1726792529872,16.88,142.24,142.17,93.92656929]
[1726792530270,3.5148,142.22,142.17,97.44256929]
[1726792530472,3.5148,142.22,142.17,93.92656929]
[1726792531075,16.88,142.24,142.17,93.92656929]
[1726792531276,4.92311931,142.25,142.17,93.92656929]
[1726792531277,3.5153,142.2,142.17,93.92656929]
[1726792531674,3.5153,142.2,142.14,20.3965]
[1726792532081,3.5151,142.21,142.15,3.5164]
[1726792532280,16.88,142.23,142.15,3.5164]
[1726792532577,16.88,142.23,142.16,16.88]
[1726792533377,1.3616,142.25,142.13,2.7617]
[1726792533680,18.2416,142.25,142.13,2.7617]
[1726792533875,18.2416,142.25,142.15,16.88]
[1726792533876,16.88,142.24,142.15,16.88]
[1726792534082,3.5148,142.22,142.16,3.5162]
[1726792534276,16.88,142.24,142.15,16.88]
[1726792534484,16.88,142.24,142.16,3.5162]
[1726792534485,3.5149,142.22,142.16,3.5162]
[1726792536580,1.3616,142.25,142.13,19.6417]
[1726792536780,16.88,142.2,142.13,19.6417]
[1726792537184,16.88,142.2,142.13,2.7617]
[1726792537485,16.88,142.19,142.13,1.4067]
[1726792537685,3.5163,142.16,142.1,20.3977]
[1726792538181,3.5165,142.15,142.09,144.1579]
[1726792538383,1.3616,142.25,142.09,140.64]
[1726792538384,16.88,142.16,142.09,140.64]
[1726792538688,16.88,142.16,142.07,19.6395]
[1726792539083,3.5167,142.15,142.09,3.5178]
[1726792539282,16.88,142.16,142.07,19.6395]
[1726792539987,3.5168,142.14,142.07,19.6395]
[1726792540684,3.5165,142.15,142.09,3.5179]
[1726792541082,3.5165,142.15,142.07,19.6395]
[1726792541083,3.5172,142.13,142.05,16.88]
[1726792541288,16.88,142.14,142.05,18.2707]
[1726792541785,16.88,142.12,142.05,1.3907]
[1726792542186,16.88,142.12,141.98,369.7]
[1726792542397,16.88,142.11,142.02,16.88]
[1726792542890,3.5179,142.1,142.04,3.519]
[1726792543085,16.88,142.11,142.02,16.88]
[1726792543285,16.88,142.13,142.04,16.88]
[1726792543485,3.5175,142.11,142.06,3.5187]
[1726792543692,16.88,142.13,142.06,3.5187]
[1726792544193,16.88,142.15,142.06,16.88]
[1726792544395,21.71656881,142.17,142.08,16.88]
[1726792544585,3.5167,142.15,142.1,3.5175]
[1726792544782,3.5167,142.15,142.08,16.88]
[1726792545390,3.5167,142.15,142.1,3.5177]
[1726792545688,21.71656881,142.17,142.1,3.5177]
[1726792545689,3.5168,142.14,142.1,3.5177]
[1726792545990,21.71656881,142.17,142.09,3.5179]
[1726792546186,16.88,142.15,142.07,1.3763]
[1726792546688,16.88,142.11,142.07,1.3763]
[1726792546885,16.88,142.13,142.05,1.3963]
[1726792547092,4.83656881,142.17,142.05,18.2763]
[1726792547093,16.88,142.15,142.05,18.2763]
[1726792547287,3.5174,142.12,142.07,3.5184]
[1726792547486,16.88,142.15,142.07,3.5184]
[1726792547487,16.88,142.13,142.07,3.5184]
[1726792547787,3.5176,142.11,142.07,3.5184]
[1726792548193,16.88,142.13,142.07,3.5184]
[1726792548593,3.5173,142.12,142.07,3.5184]
[1726792548797,16.88,142.13,142.05,1.3963]
[1726792548992,3.5179,142.1,142.05,1.3963]
[1726792549188,16.88,142.13,142.05,1.3963]
[1726792549384,16.88,142.13,142.07,3.5184]
[1726792550194,16.88,142.13,142.05,1.3963]
[1726792550387,16.88,142.15,142.06,16.88]
[1726792550784,3.5175,142.11,142.07,3.5183]
[1726792551588,16.88,142.13,142.08,3.5182]
[1726792551789,3.5174,142.12,142.08,3.5182]
[1726792552695,16.88,142.15,142.06,16.88]
[1726792553297,3.5175,142.12,142.08,3.5181]
[1726792553998,3.5172,142.13,142.09,3.518]
[1726792554295,4.83656881,142.17,142.06,16.88]
[1726792554498,21.71656881,142.17,142.08,16.88]
[1726792555094,1.3618,142.17,142.1,16.88]
[1726792556296,1.3812,142.18,142.1,16.88]
[1726792556800,3.516,142.17,142.1,16.88]
[1726792557002,1.4651,142.23,142.11,16.88]
[1726792557003,16.88,142.2,142.11,16.88]
[1726792557490,3.5159,142.18,142.14,3.5165]
[1726792557699,16.88,142.2,142.11,16.88]
[1726792558195,16.88,142.18,142.13,3.5169]
[1726792558794,16.88,142.18,142.1,16.88]
[1726792558992,16.88,142.16,142.08,16.88]
[1726792559195,16.88,142.16,142.07,1.3437]
[1726792559806,16.88,142.16,142.08,16.88]
[1726792560901,3.5165,142.15,142.11,3.5173]
[1726792561798,16.88,142.18,142.1,16.88]
[1726792562203,20.3959,142.18,142.13,3.5168]
[1726792562402,16.88,142.18,142.13,3.5168]
[1726792562803,3.516,142.17,142.13,3.5168]
[1726792564508,3.516,142.17,142.14,3.5167]
[1726792565508,3.5158,142.18,142.14,3.5167]
[1726792565711,3.5158,142.18,142.15,3.5165]
[1726792566215,16.88,142.21,142.15,3.5163]
[1726792566507,16.88,142.19,142.11,1.433]
[1726792566905,16.88,142.19,142.14,3.5165]
[1726792567106,16.88,142.19,142.11,1.433]
[1726792567515,3.5159,142.18,142.14,3.5166]
[1726792567812,16.88,142.19,142.12,16.88]
[1726792568017,14.3254,142.2,142.17,3.5158]
[1726792568218,3.5154,142.2,142.17,3.5158]
[1726792568511,10.81,142.21,142.16,10.81]
[1726792569110,10.81,142.2,142.16,10.81]
[1726792569309,10.81,142.19,142.13,1.4677]
[1726792569615,10.81,142.18,142.15,3.5163]
[1726792570006,16.89,142.2,142.14,3.5167]
[1726792570407,16.89,142.2,142.13,1.4677]
[1726792570613,3.5161,142.17,142.13,1.4677]
[1726792570817,16.89,142.2,142.13,1.4677]
[1726792571212,16.89,142.2,142.15,3.5163]
[1726792571213,3.5158,142.18,142.15,3.5163]
[1726792571416,3.5158,142.18,142.13,1.4677]
[1726792571417,18.2723,142.22,142.13,18.3577]
[1726792572313,16.89,142.2,142.13,1.4677]
[1726792572711,16.89,142.18,142.11,1.433]
[1726792573019,3.45486522,142.19,142.11,1.433]
[1726792573220,16.89,142.17,142.08,16.89]
[1726792573520,3.5166,142.15,142.08,16.89]
[1726792573918,3.5166,142.15,142.11,3.5173]
[1726792574122,3.5166,142.15,142.1,16.89]
[1726792574317,16.89,142.19,142.1,16.89]
[1726792575321,3.44219973,142.18,142.1,16.89]
[1726792575520,3.44219973,142.18,142.08,16.89]
[1726792575521,16.89,142.17,142.08,16.89]
[1726792576220,20.46533307,142.17,142.1,3.5176]
[1726792576418,20.46533307,142.17,142.08,16.89]
[1726792576620,1.3406,142.16,142.08,16.89]
[1726792576825,3.5171,142.13,142.09,3.5179]
[1726792577016,1.3406,142.16,142.09,3.5179]
[1726792577417,16.89,142.14,142.08,3.5182]
[1726792577615,16.89,142.14,142.07,1.4429]
[1726792577817,16.89,142.14,142.07,4.9612]
[1726792578317,16.89,142.14,142.07,1.4429]
[1726792578521,3.5175,142.11,142.08,3.5182]
[1726792578918,3.5171,142.13,142.09,3.5177]
[1726792579116,19.6495,142.16,142.08,16.89]
[1726792579322,1.3406,142.16,142.1,16.89]
[1726792579625,4.857,142.16,142.12,3.5171]
[1726792580218,3.5165,142.15,142.12,3.5171]
[1726792580418,1.3406,142.16,142.12,3.5171]
[1726792580619,1.3406,142.16,142.1,16.89]
[1726792580819,4.8569,142.16,142.1,16.89]
[1726792581024,1.3406,142.16,142.12,3.5171]
[1726792581226,1.3406,142.16,142.1,16.89]
[1726792581919,3.5166,142.15,142.11,3.5172]
[1726792583618,16.89,142.18,142.1,16.89]
[1726792583818,16.89,142.2,142.11,16.89]
[1726792584023,16.89,142.2,142.15,3.5165]
[1726792584225,16.89,142.2,142.06,3.60343881]
[1726792584226,14.0,142.16,141.98,97.28889263]
[1726792584423,1.3969,142.15,142.03,16.89]
[1726792584626,16.89,142.14,142.05,16.89]
[1726792584922,16.89,142.14,142.06,1.3784]
[1726792585824,3.5177,142.11,142.06,4.897]
[1726792586727,3.517,142.13,142.06,4.92367024]
[1726792586924,1.3969,142.15,142.06,23.19467024]
[1726792587722,3.5168,142.14,142.09,3.5179]
[1726792587930,16.89,142.17,142.08,16.89]
[1726792588127,16.89,142.18,142.08,16.89]
[1726792588628,3.5167,142.15,142.1,3.5176]
[1726792589126,3.5163,142.16,142.11,3.5175]
[1726792589334,16.89,142.18,142.1,16.89]
[1726792589929,3.5162,142.17,142.12,3.5171]
[1726792590320,16.89,142.2,142.1,16.89]
[1726792590523,16.89,142.2,142.14,3.5167]
[1726792590933,3.5157,142.19,142.14,3.5167]
[1726792591830,3.5157,142.18,142.14,3.5167]
[1726792592032,16.89,142.2,142.13,1.4354]
[1726792592429,16.89,142.19,142.13,1.4354]
[1726792592733,3.5167,142.14,142.13,1.4354]
[1726792593125,3.5167,142.14,142.1,3.5177]
[1726792593434,3.5167,142.14,142.09,1.4575]
[1726792593827,3.5167,142.14,142.09,4.9753]
[1726792594230,16.89,142.15,142.09,1.4575]
[1726792594629,3.5175,142.12,142.09,1.4575]
[1726792595737,3.517,142.13,142.09,21.8653]
[1726792596228,3.517,142.13,142.09,4.9753]
[1726792598141,3.517,142.13,141.93,7.34917559]
[1726792598142,16.89,142.1,141.94,3.25032088]
[1726792598335,1.4534,142.09,141.97,1.3282]
[1726792598837,3.5206,141.99,141.97,1.3282]
[1726792599033,16.89,142.02,141.97,1.3282]
[1726792599239,1.4534,142.09,141.97,1.3282]
[1726792599240,3.52,142.01,141.97,1.3282]
[1726792599436,16.89,142.03,141.97,1.3282]
[1726792599639,16.89,142.03,141.95,1.3531]
[1726792599640,3.5206,141.99,141.94,3.5217]
[1726792599938,16.89,142.01,141.94,3.5217]
[1726792600334,3.5204,142.0,141.94,3.5217]
[1726792600536,3.5204,142.0,141.95,3.5213]
[1726792601241,3.5205,141.99,141.94,3.5216]
[1726792602545,3.5207,141.98,141.93,3.5219]
[1726792603938,16.89,141.98,141.89,2.6813]
[1726792604143,3.50662051,142.04,141.89,2.6813]
[1726792604144,1.4535,141.99,141.89,2.6813]
[1726792604441,16.89,141.96,141.89,1.3282]
[1726792604640,16.89,141.98,141.89,1.3282]
[1726792604934,1.4535,141.99,141.89,1.3282]
[1726792604935,1.4535,141.99,141.9,16.89]
[1726792605242,1.4535,141.99,141.93,3.5218]
[1726792605243,3.5209,141.98,141.93,3.5218]
[1726792605438,3.5209,141.98,141.9,16.89]
[1726792605439,1.4535,141.99,141.9,16.89]
[1726792605634,1.4535,141.99,141.89,2.7854]
[1726792605834,4.974,141.99,141.94,3.5215]
[1726792606235,1.4535,141.99,141.92,3.522]
[1726792606432,1.4535,141.99,141.9,16.89]
[1726792607341,1.4535,141.99,141.89,2.7854]
[1726792607543,1.4535,141.99,141.91,16.89]
[1726792607946,4.9741,141.99,141.94,3.5217]
[1726792608342,3.5209,141.98,141.92,3.5222]
[1726792608543,1.4535,141.99,141.89,19.6754]
[1726792608733,1.4535,141.99,141.91,16.89]
[1726792609141,1.4535,141.99,141.92,3.5221]
[1726792610145,1.4535,141.99,141.89,2.7854]
[1726792610345,1.4535,141.99,141.92,16.89]
[1726792610546,4.974,141.99,141.94,3.5215]
[1726792610846,1.4535,141.99,141.94,3.5215]
[1726792611741,3.5207,141.98,141.94,3.5215]
[1726792612242,3.5207,141.98,141.93,3.5219]
[1726792613545,1.4535,141.99,141.89,2.7854]
[1726792613546,0.3323,142.05,141.94,16.89]
[1726792613742,21.78825747,142.04,141.94,16.89]
[1726792614144,3.5198,142.02,141.94,16.89]
[1726792614545,21.78825747,142.04,141.94,16.89]
[1726792614751,3.5201,142.01,141.96,3.5212]
[1726792615048,16.89,142.02,141.94,16.89]
[1726792615254,3.5204,142.0,141.95,3.5214]
[1726792615439,3.5204,142.0,141.94,16.89]
[1726792616240,3.52,142.01,141.96,3.5212]
[1726792616443,21.78825747,142.04,141.94,16.89]
[1726792616852,21.78825747,142.04,141.98,3.5207]
[1726792617650,3.5198,142.02,141.98,3.5207]
[1726792620261,3.52,142.01,141.97,3.5209]
[1726792620750,4.89825747,142.04,141.95,1.4474]
[1726792620954,16.89,142.03,141.96,3.521]
[1726792621254,16.89,142.03,141.95,1.4474]
[1726792621654,16.89,142.03,141.89,142.3372]
[1726792621655,16.89,141.99,141.9,16.89]
[1726792621854,16.89,141.99,141.9,18.3167]
[1726792622055,3.5209,141.98,141.93,3.5218]
[1726792622256,16.89,141.99,141.93,3.5218]
[1726792622953,16.89,141.99,141.94,3.5216]
[1726792623759,16.89,141.99,141.93,3.5219]
[1726792623950,16.89,141.99,141.9,18.3167]
[1726792624149,3.5207,141.98,141.9,18.3167]
[1726792624352,16.89,141.99,141.9,18.3167]
[1726792624551,16.89,142.01,141.92,16.89]
[1726792624746,16.89,142.01,141.95,3.5213]
[1726792625154,16.89,142.01,141.92,16.89]
[1726792626256,16.89,142.03,141.94,16.89]
[1726792626460,21.78825747,142.04,141.94,16.89]
[1726792626861,18.2569,142.04,141.96,16.89]
[1726792627158,18.2569,142.04,141.97,1.4552]
[1726792627762,18.2569,142.04,141.99,3.5203]
[1726792629051,3.5195,142.03,141.99,3.5203]
[1726792629359,18.2569,142.04,141.97,1.4552]
[1726792629559,3.5196,142.03,141.97,1.4552]
[1726792630156,3.5197,142.02,141.97,1.4552]
[1726792630362,16.89,142.02,141.97,1.4552]